[Event "12th Arad Open 2019"]
[Site "Arad"]
[Date "2019.07.25"]
[Round "3.22"]
[White "Martinovici, Ilie"]
[Black "Ursente, Tudor-Alexandru"]
[Result "1-0"]
[ECO "A56"]
[WhiteElo "2407"]
[BlackElo "1983"]
[Annotator "RC"]
[PlyCount "55"]
[EventDate "2019.07.24"]
[EventType "swiss"]
[EventCountry "ROU"]
[SourceTitle "playchess.com"]
[Source "ChessBase"]
[SourceQuality "1"]
[TimeControl "40/5400+30:900+30"]

1. d4 {[%emt 0:00:00]} Nf6 {[%emt 0:09:48]} 2. c4 {[%emt 0:00:00]} c5 {[%emt 0:00:22]} 3. d5 {[%emt 0:00:00]} e5 {[%emt 0:01:30]} 4. Nc3 {[%emt 0:00:01]} d6 {[%emt 0:00:07]} 5. e4 {[%emt 0:00:06]} Be7 {[%emt 0:01:59]} 6. g3 {[%emt 0:00:17]} O-O {[%emt 0:00:29]} 7. Bg2 {[%emt 0:00:06]} Ne8 {[%emt 0:06:03]} 8. Nge2 {[%emt 0:07:55]} g6 {[%emt 0:05:31]} 9. O-O {[%emt 0:01:50]} Nd7 {[%emt 0:01:42]} 10. f4 {[%emt 0:04:16]} exf4 {[%emt 0:07:05]} 11. gxf4 {[%emt 0:00:08]} f5 {[%emt 0:02:15]} 12. exf5 {[%emt 0:02:21]} Rxf5 {[%emt 0:11:04]} 13. Ng3 {[%emt 0:01:14]} Rf8 {[%emt 0:00:06]} 14. f5 {[%emt 0:11:33]} Ne5 {[%emt 0:00:42]} 15. fxg6 {[%emt 0:00:05]} hxg6 {[%emt 0:00:53]} 16. Bf4 {[%emt 0:01:14]} Bf6 {[%emt 0:03:48]} 17. Qc2 {[%emt 0:01:32]} g5 {[%emt 0:10:15]} 18. Bxe5 {[%emt 0:01:35]} Bxe5 {[%emt 0:00:07]} 19. Qg6+ {[%emt 0:02:00]} Ng7 {[%emt 0:00:11]} 20. Be4 {[%emt 0:02:32]} Rf4 {[%emt 0:13:56]} 21. Nh5 {[%emt 0:01:59]} Qd7 {[%emt 0:07:35]} 22. Nxf4 {[%emt 0:03:02]} Bxf4 {[%emt 0:00:07]} 23. Qh7+ {[%emt 0:04:34]} Kf8 {[%emt 0:00:12]} 24. Bg2 {[%emt 0:02:41]} Qf5 {[%emt 0:02:12]} 25. Qh8+ {[%emt 0:01:06]} Kf7 {[%emt 0:00:07]} 26. Ne4 {[%emt 0:00:42]} Qe5 {[%emt 0:00:44]} 27. Nxg5+ {[%emt 0:02:33]} Qxg5 {[%emt 0:00:25]} 28. Rxf4+ {[%emt 0:00:09]} 1-0

[Event "12th Arad Open 2019"]
[Site "Arad"]
[Date "2019.07.26"]
[Round "4.1"]
[White "Soltanici, Ruslan"]
[Black "Mastrovasilis, Dimitrios"]
[Result "0-1"]
[ECO "B48"]
[WhiteElo "2408"]
[BlackElo "2589"]
[Annotator "ChessBase"]
[PlyCount "91"]
[EventDate "2019.07.24"]
[EventType "swiss"]
[EventCountry "ROU"]
[SourceTitle "playchess.com"]
[Source "ChessBase"]
[SourceQuality "1"]
[TimeControl "40/5400+30:900+30"]

1. e4 {[%emt 0:00:00]} c5 {[%emt 0:00:00]} 2. Nf3 {[%emt 0:00:00]} e6 {[%emt 0:00:00]} 3. Nc3 {[%emt 0:00:41]} Nc6 {[%emt 0:00:24]} 4. d4 {[%emt 0:00:15]} cxd4 {[%emt 0:00:11]} 5. Nxd4 {[%emt 0:00:07]} Qc7 {[%emt 0:00:10]} 6. Be3 {[%emt 0:00:54]} Nf6 {[%emt 0:00:51]} 7. Be2 {[%emt 0:10:03]} Be7 {[%emt 0:01:10]} 8. f4 {[%emt 0:05:06]} d6 {[%emt 0:01:10]} 9. Qd2 {[%emt 0:03:59]} O-O {[%emt 0:12:11]} 10. O-O-O {[%emt 0:01:48]} a6 {[%emt 0:04:32]} 11. g4 {[%emt 0:02:33]} Nd7 {[%emt 0:01:17]} 12. g5 {[%emt 0:07:20]} b5 {[%emt 0:18:43]} 13. f5 {[%emt 0:26:47]} b4 {[%emt 0:11:57]} 14. f6 {[%emt 0:05:47]} gxf6 {[%emt 0:05:15]} 15. gxf6 {[%emt 0:18:07]} Bxf6 {[%emt 0:00:27]} 16. Rhg1+ {[%emt 0:01:16]} Kh8 {[%emt 0:00:12]} 17. Na4 {[%emt 0:00:48]} Bb7 {[%emt 0:04:32]} 18. Nf3 {[%emt 0:01:57]} Nce5 {[%emt 0:07:49]} 19. Qxd6 {[%emt 0:03:07]} Qxd6 {[%emt 0:05:13]} 20. Rxd6 {[%emt 0:00:13]} Nxf3 {[%emt 0:01:10]} 21. Bxf3 {[%emt 0:00:18]} Ne5 {[%emt 0:00:06]} 22. Be2 {[%emt 0:00:37]} Bxe4 {[%emt 0:03:03]} 23. Nc5 {[%emt 0:01:55]} Bg6 {[%emt 0:02:19]} 24. Rf1 {[%emt 0:01:25]} Bg7 {[%emt 0:11:11]} 25. Bxa6 {[%emt 0:01:38]} Ng4 {[%emt 0:01:41]} 26. Bd4 {[%emt 0:01:12]} e5 {[%emt 0:00:49]} 27. Bg1 {[%emt 0:00:17]} Bh6+ {[%emt 0:01:43]} 28. Kb1 {[%emt 0:00:03]} Ne3 {[%emt 0:00:23]} 29. Bxe3 {[%emt 0:01:13]} Bxe3 {[%emt 0:00:02]} 30. Nd3 {[%emt 0:01:13]} Bd4 {[%emt 0:04:24]} 31. Re1 {[%emt 0:01:06]} Rfd8 {[%emt 0:01:09]} 32. Rxd8+ {[%emt 0:02:03]} Rxd8 {[%emt 0:00:02]} 33. Nxb4 {[%emt 0:00:48]} Bf2 {[%emt 0:00:33]} 34. Rf1 {[%emt 0:01:13]} e4 {[%emt 0:00:20]} 35. a4 {[%emt 0:01:02]} e3 {[%emt 0:00:05]} 36. Ka2 {[%emt 0:00:37]} f5 {[%emt 0:01:48]} 37. Nd3 {[%emt 0:00:24]} Bh4 {[%emt 0:00:38]} 38. Nf4 {[%emt 0:00:32]} Bf7+ {[%emt 0:00:23]} 39. b3 {[%emt 0:00:14]} Rd2 {[%emt 0:00:21]} 40. Bd3 {[%emt 0:00:00]} Bg5 {[%emt 0:00:00]} 41. Ne2 {[%emt 0:10:58]} Bg6 {[%emt 0:02:27]} 42. Ka3 {[%emt 0:03:57]} f4 {[%emt 0:02:23]} 43. Bxg6 {[%emt 0:02:20]} Rxe2 {[%emt 0:02:43]} 44. Bd3 {[%emt 0:00:22]} Rd2 {[%emt 0:00:22]} 45. Be4 {[%emt 0:00:35]} e2 {[%emt 0:00:45]} 46. Rg1 {[%emt 0:00:17]} 0-1

[Event "12th Arad Open 2019"]
[Site "Arad"]
[Date "2019.07.26"]
[Round "4.3"]
[White "Bogdan, Dan"]
[Black "Costachi, Mihnea"]
[Result "0-1"]
[ECO "A15"]
[WhiteElo "2370"]
[BlackElo "2471"]
[Annotator "ChessBase"]
[PlyCount "63"]
[EventDate "2019.07.24"]
[EventType "swiss"]
[EventCountry "ROU"]
[SourceTitle "playchess.com"]
[Source "ChessBase"]
[SourceQuality "1"]
[TimeControl "40/5400+30:900+30"]

1. c4 {[%emt 0:00:00]} Nf6 {[%emt 0:00:00]} 2. g3 {[%emt 0:00:07]} g6 {[%emt 0:00:00]} 3. Bg2 {[%emt 0:00:06]} Bg7 {[%emt 0:00:04]} 4. Nc3 {[%emt 0:00:37]} O-O {[%emt 0:01:05]} 5. d4 {[%emt 0:00:13]} d6 {[%emt 0:00:23]} 6. e3 {[%emt 0:01:53]} Nc6 {[%emt 0:13:06]} 7. Nge2 {[%emt 0:06:11]} Bd7 {[%emt 0:07:22]} 8. O-O {[%emt 0:03:03]} a6 {[%emt 0:00:34]} 9. h3 {[%emt 0:01:54]} Rb8 {[%emt 0:01:17]} 10. e4 {[%emt 0:02:52]} b5 {[%emt 0:02:01]} 11. cxb5 {[%emt 0:00:24]} axb5 {[%emt 0:00:04]} 12. Be3 {[%emt 0:00:04]} b4 {[%emt 0:03:50]} 13. Nd5 {[%emt 0:00:23]} Na5 {[%emt 0:04:02]} 14. Nxf6+ {[%emt 0:01:19]} Bxf6 {[%emt 0:09:52]} 15. Rc1 {[%emt 0:01:13]} b3 {[%emt 0:09:06]} 16. a3 {[%emt 0:01:20]} Bb5 {[%emt 0:01:54]} 17. Re1 {[%emt 0:03:42]} c5 {[%emt 0:05:44]} 18. Nc3 {[%emt 0:06:23]} Nc4 {[%emt 0:04:25]} 19. Nxb5 {[%emt 0:01:44]} Nxe3 {[%emt 0:00:04]} 20. Rxe3 {[%emt 0:00:55]} Rxb5 {[%emt 0:00:05]} 21. dxc5 {[%emt 0:00:56]} Bxb2 {[%emt 0:04:23]} 22. Rb1 {[%emt 0:00:30]} Bf6 {[%emt 0:13:50]} 23. cxd6 {[%emt 0:16:28]} b2 {[%emt 0:00:06]} 24. Bf1 {[%emt 0:00:18]} Rc5 {[%emt 0:00:43]} 25. dxe7 {[%emt 0:03:43]} Qxe7 {[%emt 0:00:10]} 26. Qb3 {[%emt 0:00:23]} Qe5 {[%emt 0:05:17]} 27. f4 {[%emt 0:03:10]} Qd4 {[%emt 0:00:54]} 28. e5 {[%emt 0:00:05]} Bxe5 {[%emt 0:00:22]} 29. Kf2 {[%emt 0:11:01]} Rc1 {[%emt 0:01:39]} 30. Bd3 {[%emt 0:00:25]} Rb8 {[%emt 0:00:54]} 31. Qa2 {[%emt 0:00:13]} Bxf4 32. Ra1 0-1

[Event "12th Arad Open 2019"]
[Site "Arad"]
[Date "2019.07.26"]
[Round "4.5"]
[White "Stoleriu, George"]
[Black "Gorodetzky, David"]
[Result "1/2-1/2"]
[ECO "B15"]
[WhiteElo "2360"]
[BlackElo "2461"]
[Annotator "ChessBase"]
[PlyCount "117"]
[EventDate "2019.07.24"]
[EventType "swiss"]
[EventCountry "ROU"]
[SourceTitle "playchess.com"]
[Source "ChessBase"]
[SourceQuality "1"]
[TimeControl "40/5400+30:900+30"]

1. e4 {[%emt 0:00:00]} c6 {[%emt 0:00:00]} 2. d4 {[%emt 0:00:37]} d5 {[%emt 0:00:00]} 3. Nc3 {[%emt 0:01:16]} dxe4 {[%emt 0:00:00]} 4. Nxe4 {[%emt 0:00:02]} Nf6 {[%emt 0:00:02]} 5. Nxf6+ {[%emt 0:01:03]} exf6 {[%emt 0:00:05]} 6. c3 {[%emt 0:00:56]} Bd6 {[%emt 0:00:11]} 7. Bd3 {[%emt 0:00:04]} O-O {[%emt 0:00:12]} 8. h3 {[%emt 0:00:45]} Nd7 {[%emt 0:04:52]} 9. Ne2 {[%emt 0:04:55]} Re8 {[%emt 0:03:37]} 10. O-O {[%emt 0:03:07]} Qc7 {[%emt 0:09:25]} 11. c4 {[%emt 0:14:45]} c5 {[%emt 0:11:44]} 12. Be3 {[%emt 0:02:50]} cxd4 {[%emt 0:05:28]} 13. Nxd4 a6 {[%emt 0:11:25]} 14. Nf5 {[%emt 0:21:43]} Bh2+ {[%emt 0:01:20]} 15. Kh1 {[%emt 0:03:38]} Ne5 {[%emt 0:00:02]} 16. Nd6 {[%emt 0:15:59]} Rd8 {[%emt 0:04:00]} 17. c5 {[%emt 0:00:43]} Nxd3 {[%emt 0:02:01]} 18. Qxd3 {[%emt 0:00:29]} Bxd6 {[%emt 0:04:18]} 19. cxd6 {[%emt 0:00:14]} Qxd6 {[%emt 0:03:05]} 20. Qxd6 {[%emt 0:00:22]} Rxd6 {[%emt 0:00:03]} 21. Rfd1 {[%emt 0:00:27]} Rxd1+ {[%emt 0:00:15]} 22. Rxd1 {[%emt 0:00:04]} Be6 {[%emt 0:00:11]} 23. a3 {[%emt 0:00:05]} Kf8 {[%emt 0:02:20]} 24. Bc5+ {[%emt 0:05:55]} Ke8 {[%emt 0:00:13]} 25. b4 {[%emt 0:00:24]} Rc8 {[%emt 0:02:52]} 26. Kh2 {[%emt 0:02:41]} a5 {[%emt 0:04:20]} 27. Rd2 {[%emt 0:02:56]} a4 {[%emt 0:12:00]} 28. Rd6 {[%emt 0:03:21]} Bd7 {[%emt 0:02:28]} 29. Rd3 {[%emt 0:00:59]} Rc6 {[%emt 0:01:31]} 30. Rd6 {[%emt 0:00:16]} Rxd6 {[%emt 0:01:21]} 31. Bxd6 {[%emt 0:00:01]} Bb5 {[%emt 0:03:30]} 32. Kg3 {[%emt 0:10:45]} Kd7 {[%emt 0:00:11]} 33. Bf8 {[%emt 0:00:03]} g6 {[%emt 0:04:30]} 34. Kf4 {[%emt 0:02:03]} Ke6 {[%emt 0:00:36]} 35. Ke3 {[%emt 0:01:24]} Kd5 {[%emt 0:00:43]} 36. Kd2 {[%emt 0:00:49]} Bf1 {[%emt 0:00:44]} 37. h4 {[%emt 0:01:54]} Bxg2 {[%emt 0:00:28]} 38. Bg7 {[%emt 0:00:50]} Ke6 {[%emt 0:03:07]} 39. b5 {[%emt 0:00:32]} Bf1 {[%emt 0:01:47]} 40. b6 {[%emt 0:00:00]} Kf5 {[%emt 0:00:00]} 41. Ke3 {[%emt 0:03:00]} g5 {[%emt 0:19:45]} 42. h5 {[%emt 0:00:29]} Bb5 {[%emt 0:00:40]} 43. Kf3 {[%emt 0:01:28]} Bc4 {[%emt 0:00:24]} 44. Kg3 {[%emt 0:01:14]} Be2 {[%emt 0:00:17]} 45. h6 {[%emt 0:00:04]} Bd1 {[%emt 0:00:33]} 46. Bh8 {[%emt 0:02:01]} Kg6 {[%emt 0:00:29]} 47. Bg7 {[%emt 0:00:05]} Bb3 {[%emt 0:00:15]} 48. Bf8 {[%emt 0:00:42]} Bd5 {[%emt 0:00:09]} 49. Bg7 {[%emt 0:00:16]} f5 {[%emt 0:00:57]} 50. f4 {[%emt 0:00:06]} f6 {[%emt 0:00:05]} 51. Bf8 {[%emt 0:00:21]} Be4 {[%emt 0:00:22]} 52. Bg7 {[%emt 0:00:11]} Kf7 {[%emt 0:00:06]} 53. Bh8 {[%emt 0:00:17]} Ke6 {[%emt 0:01:13]} 54. Bg7 {[%emt 0:00:04]} Bd3 {[%emt 0:00:33]} 55. Bh8 {[%emt 0:00:14]} Be4 {[%emt 0:00:31]} 56. Bg7 {[%emt 0:00:05]} g4 {[%emt 0:00:06]} 57. Bh8 {[%emt 0:00:16]} Bc6 {[%emt 0:01:18]} 58. Bg7 {[%emt 0:00:07]} Kf7 {[%emt 0:00:39]} 59. Bh8 {[%emt 0:00:10]} 1/2-1/2

[Event "12th Arad Open 2019"]
[Site "Arad"]
[Date "2019.07.26"]
[Round "4.6"]
[White "Ileana, George"]
[Black "Macovei, Andrei"]
[Result "1/2-1/2"]
[ECO "B96"]
[WhiteElo "2344"]
[BlackElo "2424"]
[Annotator "NA RC"]
[PlyCount "95"]
[EventDate "2019.07.24"]
[EventType "swiss"]
[EventCountry "ROU"]
[SourceTitle "playchess.com"]
[Source "ChessBase"]
[SourceQuality "1"]
[TimeControl "40/5400+30:900+30"]

1. e4 {[%emt 0:00:00]} c5 {[%emt 0:00:00]} 2. Nf3 {[%emt 0:00:10]} d6 {[%emt 0:00:04]} 3. d4 {[%emt 0:00:04]} cxd4 {[%emt 0:00:03]} 4. Nxd4 {[%emt 0:00:04]} Nf6 {[%emt 0:00:04]} 5. Nc3 {[%emt 0:00:04]} a6 {[%emt 0:00:02]} 6. Bg5 {[%emt 0:00:33]} e6 {[%emt 0:00:13]} 7. f4 {[%emt 0:02:44]} h6 {[%emt 0:00:28]} 8. Bh4 {[%emt 0:00:05]} Qb6 {[%emt 0:00:04]} 9. a3 {[%emt 0:00:24]} Be7 {[%emt 0:01:23]} 10. Bf2 {[%emt 0:00:08]} Qc7 {[%emt 0:00:07]} 11. Qf3 {[%emt 0:00:21]} b5 {[%emt 0:02:36]} 12. O-O-O {[%emt 0:00:30]} Nbd7 {[%emt 0:00:44]} 13. g4 {[%emt 0:00:07]} Bb7 {[%emt 0:03:03]} 14. Bd3 {[%emt 0:01:48]} Nc5 {[%emt 0:09:23]} 15. Rhe1 {[%emt 0:01:44]} d5 {[%emt 0:11:52]} 16. e5 {[%emt 0:03:52]} Nfe4 {[%emt 0:00:21]} 17. Bxe4 {[%emt 0:01:25]} Nxe4 {[%emt 0:00:36]} 18. Nxe4 {[%emt 0:05:56]} dxe4 {[%emt 0:00:27]} 19. Qg3 {[%emt 0:00:18]} Rc8 {[%emt 0:08:13]} 20. Kb1 {[%emt 0:01:19]} Bd5 {[%emt 0:08:40]} 21. Re3 {[%emt 0:03:27]} Qc4 {[%emt 0:07:14]} 22. Rb3 {[%emt 0:10:26]} Bc5 {[%emt 0:24:09]} 23. Qc3 {[%emt 0:02:47]} Bxd4 {[%emt 0:02:05]} 24. Bxd4 {[%emt 0:00:11]} g5 {[%emt 0:01:56]} 25. Be3 {[%emt 0:02:35]} Qxc3 {[%emt 0:03:27]} 26. Rxc3 {[%emt 0:00:07]} Rxc3 {[%emt 0:00:03]} 27. bxc3 {[%emt 0:00:06]} h5 {[%emt 0:04:34]} 28. fxg5 {[%emt 0:07:51]} hxg4 {[%emt 0:00:21]} 29. Bf4 {[%emt 0:00:08]} Rh3 {[%emt 0:01:39]} 30. Bg3 {[%emt 0:00:05]} Kf8 {[%emt 0:00:42]} 31. Kc1 {[%emt 0:00:23]} Rh5 {[%emt 0:00:58]} 32. Bf4 {[%emt 0:00:28]} Kg7 {[%emt 0:00:09]} 33. Kd2 {[%emt 0:00:12]} Rh8 {[%emt 0:02:19]} 34. Rf1 {[%emt 0:01:03]} Bc4 {[%emt 0:01:13]} 35. Rf2 {[%emt 0:00:44]} Rd8+ {[%emt 0:00:22]} 36. Ke1 {[%emt 0:04:04]} Kg6 {[%emt 0:00:05]} 37. Be3 {[%emt 0:00:39]} Kg7 {[%emt 0:04:32]} 38. Rf6 {[%emt 0:03:21]} a5 {[%emt 0:02:25]} 39. Rh6 {[%emt 0:00:55]} a4 {[%emt 0:00:23]} 40. Rh4 {[%emt 0:00:00]} Rh8 {[%emt 0:00:00]} 41. Rh6 {[%emt 0:02:28]} Rd8 {[%emt 0:01:01]} 42. Kf2 {[%emt 0:01:01]} Rh8 {[%emt 0:00:54]} 43. Bf4 {[%emt 0:01:14]} Rxh6 {[%emt 0:00:29]} 44. gxh6+ {[%emt 0:00:12]} Kg6 {[%emt 0:00:02]} 45. Ke3 {[%emt 0:00:28]} f5 {[%emt 0:02:14]} 46. exf6 {[%emt 0:03:06]} Kxf6 {[%emt 0:00:02]} 47. Kxe4 {[%emt 0:00:37]} Kg6 {[%emt 0:00:03]} 48. h7 {[%emt 0:00:31]} 1/2-1/2

[Event "12th Arad Open 2019"]
[Site "Arad"]
[Date "2019.07.26"]
[Round "4.7"]
[White "Barrish, Daniel"]
[Black "Zawadzka, Jolanta"]
[Result "1-0"]
[ECO "D30"]
[WhiteElo "2237"]
[BlackElo "2422"]
[Annotator "NA"]
[PlyCount "121"]
[EventDate "2019.07.24"]
[EventType "swiss"]
[EventCountry "ROU"]
[SourceTitle "playchess.com"]
[Source "ChessBase"]
[SourceQuality "1"]
[TimeControl "40/5400+30:900+30"]

1. d4 {[%emt 0:00:00]} d5 {[%emt 0:00:00]} 2. c4 {[%emt 0:00:00]} e6 {[%emt 0:00:00]} 3. Nf3 {[%emt 0:00:00]} Nf6 {[%emt 0:00:00]} 4. g3 {[%emt 0:00:05]} Bb4+ {[%emt 0:00:00]} 5. Bd2 {[%emt 0:00:09]} Be7 {[%emt 0:00:03]} 6. Bg2 {[%emt 0:00:11]} O-O {[%emt 0:00:08]} 7. O-O {[%emt 0:00:04]} Nbd7 {[%emt 0:00:07]} 8. Qc2 {[%emt 0:00:24]} Ne4 {[%emt 0:00:19]} 9. Nc3 {[%emt 0:01:13]} Nxd2 {[%emt 0:00:13]} 10. Nxd2 {[%emt 0:00:11]} c6 {[%emt 0:00:10]} 11. e3 {[%emt 0:00:27]} f5 {[%emt 0:02:35]} 12. Ne2 {[%emt 0:05:11]} Nf6 {[%emt 0:09:41]} 13. Nf4 {[%emt 0:01:22]} Bd7 {[%emt 0:02:10]} 14. Nf3 {[%emt 0:02:50]} Bd6 {[%emt 0:05:38]} 15. Nd3 {[%emt 0:04:32]} Be8 {[%emt 0:02:06]} 16. c5 {[%emt 0:00:41]} Bc7 {[%emt 0:01:31]} 17. Nfe5 {[%emt 0:02:52]} Ng4 {[%emt 0:04:53]} 18. Qe2 {[%emt 0:11:50]} Nxe5 {[%emt 0:02:07]} 19. dxe5 {[%emt 0:00:51]} b6 {[%emt 0:02:58]} 20. b4 {[%emt 0:03:32]} a5 {[%emt 0:04:17]} 21. cxb6 {[%emt 0:06:00]} Bxb6 {[%emt 0:00:13]} 22. a3 {[%emt 0:01:22]} Rf7 {[%emt 0:02:35]} 23. Rab1 {[%emt 0:08:44]} Rfa7 {[%emt 0:05:49]} 24. Rfc1 {[%emt 0:01:34]} axb4 {[%emt 0:03:15]} 25. axb4 {[%emt 0:00:15]} Qb8 {[%emt 0:01:59]} 26. Qb2 {[%emt 0:04:03]} Ra2 {[%emt 0:04:34]} 27. Qc3 {[%emt 0:00:52]} Qa7 {[%emt 0:03:48]} 28. Nc5 {[%emt 0:02:45]} Bxc5 {[%emt 0:01:47]} 29. bxc5 {[%emt 0:01:17]} Bh5 {[%emt 0:05:05]} 30. Qb4 {[%emt 0:05:01]} Be2 {[%emt 0:03:36]} 31. Qb7 {[%emt 0:04:44]} Bd3 {[%emt 0:05:34]} 32. Qxc6 {[%emt 0:06:37]} Ra6 {[%emt 0:05:23]} 33. Rb6 {[%emt 0:11:07]} Ra1 {[%emt 0:00:39]} 34. Rf1 {[%emt 0:01:36]} Rxf1+ {[%emt 0:09:01]} 35. Bxf1 {[%emt 0:00:06]} Qa1 {[%emt 0:00:23]} 36. Qxa8+ {[%emt 0:00:16]} Qxa8 {[%emt 0:00:03]} 37. Bxd3 {[%emt 0:00:19]} Qa1+ {[%emt 0:04:29]} 38. Bf1 {[%emt 0:00:12]} Qxe5 {[%emt 0:00:43]} 39. Rd6 {[%emt 0:02:54]} Kf8 {[%emt 0:07:20]} 40. h4 {[%emt 0:00:00]} Ke7 {[%emt 0:00:00]} 41. Ra6 {[%emt 0:15:01]} Qc3 {[%emt 0:03:15]} 42. Ra7+ {[%emt 0:03:00]} Kf6 {[%emt 0:02:07]} 43. Rc7 {[%emt 0:00:15]} h6 {[%emt 0:09:10]} 44. c6 {[%emt 0:00:50]} e5 {[%emt 0:00:26]} 45. Rc8 {[%emt 0:01:19]} d4 {[%emt 0:03:43]} 46. c7 {[%emt 0:02:25]} Kg6 {[%emt 0:00:11]} 47. exd4 {[%emt 0:00:45]} exd4 {[%emt 0:00:04]} 48. Bd3 {[%emt 0:04:23]} Qc5 {[%emt 0:03:35]} 49. g4 {[%emt 0:00:38]} Qc1+ {[%emt 0:00:24]} 50. Kg2 {[%emt 0:00:28]} Qc6+ {[%emt 0:00:52]} 51. f3 {[%emt 0:00:34]} Kf7 {[%emt 0:00:16]} 52. Bxf5 {[%emt 0:00:45]} d3 {[%emt 0:00:42]} 53. Bxd3 {[%emt 0:00:34]} Qd7 {[%emt 0:00:18]} 54. Bf5 {[%emt 0:00:39]} Qd2+ {[%emt 0:00:05]} 55. Kh3 {[%emt 0:00:14]} Qc1 {[%emt 0:01:22]} 56. Rf8+ {[%emt 0:01:47]} Ke7 {[%emt 0:00:01]} 57. c8=Q {[%emt 0:01:32]} Qh1+ {[%emt 0:00:04]} 58. Kg3 {[%emt 0:00:07]} Qg1+ {[%emt 0:01:28]} 59. Kf4 {[%emt 0:00:09]} Qd4+ {[%emt 0:00:37]} 60. Be4 {[%emt 0:00:20]} g5+ {[%emt 0:00:30]} 61. Kf5 {[%emt 0:01:22]} 1-0

[Event "12th Arad Open 2019"]
[Site "Arad"]
[Date "2019.07.26"]
[Round "4.8"]
[White "Jianu, Vlad-Cristian"]
[Black "Nester, Ihor"]
[Result "1/2-1/2"]
[ECO "A10"]
[WhiteElo "2523"]
[BlackElo "2361"]
[Annotator "RC"]
[PlyCount "83"]
[EventDate "2019.07.24"]
[EventType "swiss"]
[EventCountry "ROU"]
[SourceTitle "playchess.com"]
[Source "ChessBase"]
[SourceQuality "1"]
[TimeControl "40/5400+30:900+30"]

1. c4 {[%emt 0:00:00]} f5 {[%emt 0:02:39]} 2. g3 {[%emt 0:00:00]} Nf6 {[%emt 0:00:07]} 3. Bg2 {[%emt 0:00:00]} g6 {[%emt 0:00:07]} 4. Nc3 {[%emt 0:00:53]} Bg7 {[%emt 0:00:08]} 5. d3 {[%emt 0:00:12]} d6 {[%emt 0:01:57]} 6. e4 {[%emt 0:00:08]} c6 {[%emt 0:01:08]} 7. Nge2 {[%emt 0:00:16]} e5 {[%emt 0:03:22]} 8. O-O {[%emt 0:03:55]} O-O {[%emt 0:01:37]} 9. exf5 {[%emt 0:00:16]} Bxf5 {[%emt 0:00:43]} 10. d4 {[%emt 0:00:21]} Nbd7 {[%emt 0:03:45]} 11. h3 {[%emt 0:01:45]} Qc7 {[%emt 0:11:35]} 12. g4 {[%emt 0:05:54]} Be6 {[%emt 0:00:12]} 13. d5 {[%emt 0:00:08]} Bf7 {[%emt 0:00:50]} 14. Be3 {[%emt 0:05:27]} c5 {[%emt 0:05:01]} 15. Ng3 {[%emt 0:02:48]} a6 {[%emt 0:00:32]} 16. a4 {[%emt 0:04:46]} Rab8 {[%emt 0:13:49]} 17. Qc2 {[%emt 0:02:16]} Kh8 {[%emt 0:03:14]} 18. g5 {[%emt 0:06:05]} Ng8 {[%emt 0:00:56]} 19. Be4 {[%emt 0:06:30]} Ne7 {[%emt 0:00:46]} 20. Kg2 {[%emt 0:02:26]} b5 {[%emt 0:12:01]} 21. axb5 {[%emt 0:08:41]} axb5 {[%emt 0:00:03]} 22. cxb5 {[%emt 0:01:52]} Nb6 {[%emt 0:01:40]} 23. Rad1 {[%emt 0:00:06]} Nbc8 {[%emt 0:08:27]} 24. h4 {[%emt 0:08:37]} Na7 {[%emt 0:00:54]} 25. h5 {[%emt 0:04:31]} Kg8 {[%emt 0:01:28]} 26. h6 {[%emt 0:10:00]} Bh8 {[%emt 0:00:56]} 27. b4 {[%emt 0:00:30]} cxb4 {[%emt 0:02:09]} 28. b6 {[%emt 0:00:06]} Rxb6 {[%emt 0:05:51]} 29. Bxb6 {[%emt 0:02:09]} Qxb6 {[%emt 0:00:02]} 30. Qb3 {[%emt 0:00:43]} Nac6 {[%emt 0:05:50]} 31. Rb1 {[%emt 0:05:38]} Rb8 {[%emt 0:00:10]} 32. Nce2 {[%emt 0:03:35]} Qb5 {[%emt 0:04:04]} 33. Rfd1 {[%emt 0:00:28]} Nd4 {[%emt 0:00:59]} 34. Rxd4 {[%emt 0:08:56]} exd4 {[%emt 0:00:09]} 35. Nf4 {[%emt 0:00:01]} Qa5 {[%emt 0:06:26]} 36. Nge2 {[%emt 0:02:53]} Rb5 {[%emt 0:02:21]} 37. Qc4 {[%emt 0:00:08]} Rb8 {[%emt 0:01:23]} 38. Nxd4 {[%emt 0:00:42]} Qc5 {[%emt 0:00:21]} 39. Qxc5 {[%emt 0:00:52]} dxc5 {[%emt 0:00:01]} 40. Nde6 {[%emt 0:00:00]} Be5 {[%emt 0:00:00]} 41. Nd3 {[%emt 0:12:57]} Bxe6 {[%emt 0:01:36]} 42. dxe6 1/2-1/2

[Event "12th Arad Open 2019"]
[Site "Arad"]
[Date "2019.07.26"]
[Round "4.9"]
[White "Weinzettl, Ernst"]
[Black "Svetushkin, Dmitry"]
[Result "1-0"]
[ECO "B12"]
[WhiteElo "2165"]
[BlackElo "2528"]
[Annotator "ChessBase"]
[PlyCount "53"]
[EventDate "2019.07.24"]
[EventType "swiss"]
[EventCountry "ROU"]
[SourceTitle "playchess.com"]
[Source "ChessBase"]
[SourceQuality "1"]
[TimeControl "40/5400+30:900+30"]

1. e4 {[%emt 0:00:00]} c6 {[%emt 0:00:00]} 2. d4 {[%emt 0:00:00]} d5 {[%emt 0:00:03]} 3. e5 {[%emt 0:00:02]} Bf5 {[%emt 0:00:09]} 4. h4 {[%emt 0:00:17]} h6 {[%emt 0:00:07]} 5. g4 {[%emt 0:00:43]} Bd7 {[%emt 0:00:09]} 6. Nc3 {[%emt 0:00:36]} Qc8 {[%emt 0:00:08]} 7. Be2 {[%emt 0:01:47]} h5 {[%emt 0:02:17]} 8. gxh5 {[%emt 0:01:43]} Nh6 {[%emt 0:00:18]} 9. Bf4 {[%emt 0:14:57]} e6 {[%emt 0:03:25]} 10. Qd2 {[%emt 0:04:29]} c5 {[%emt 0:01:58]} 11. dxc5 {[%emt 0:01:23]} Bxc5 {[%emt 0:02:14]} 12. O-O-O {[%emt 0:02:53]} Nc6 {[%emt 0:01:09]} 13. Nf3 {[%emt 0:09:20]} Ng4 {[%emt 0:06:32]} 14. Rhg1 {[%emt 0:08:03]} Nxf2 {[%emt 0:00:41]} 15. Rdf1 {[%emt 0:03:58]} Ne4 {[%emt 0:03:05]} 16. Nxe4 {[%emt 0:00:39]} dxe4 {[%emt 0:00:10]} 17. Ng5 {[%emt 0:00:59]} Bxg1 {[%emt 0:01:37]} 18. Nxe4 {[%emt 0:00:19]} Bc5 {[%emt 0:00:33]} 19. Nxc5 {[%emt 0:00:11]} Ne7 {[%emt 0:00:19]} 20. Ne4 {[%emt 0:01:08]} Nf5 {[%emt 0:00:12]} 21. h6 {[%emt 0:07:39]} Kf8 {[%emt 0:40:56]} 22. hxg7+ {[%emt 0:15:26]} Kxg7 {[%emt 0:00:08]} 23. Rg1+ {[%emt 0:01:03]} Kf8 {[%emt 0:00:02]} 24. Qb4+ {[%emt 0:03:11]} Ne7 {[%emt 0:00:05]} 25. Bg5 {[%emt 0:00:14]} Qd8 {[%emt 0:03:20]} 26. Nf6 {[%emt 0:01:30]} Bc6 {[%emt 0:06:57]} 27. Bh6+ {[%emt 0:00:12]} 1-0